bitfinex-derivatives/quotes_BTCF0:USTF0_20250929
["timestamp","ask_amount","ask_price","bid_price","bid_amount"]
[1759149461940,0.0890171,112280.0,112270.0,0.03187976]
[1759149462134,1.16838916,112280.0,112270.0,0.0135434]
[1759149462436,1.16838916,112280.0,112260.0,0.01301]
[1759149462437,0.089025,112270.0,112260.0,0.01301]
[1759149462634,0.60281763,112270.0,112260.0,0.01301]
[1759149463532,0.61100464,112270.0,112260.0,0.01301]
[1759149463835,1.44184464,112270.0,112260.0,0.01301]
[1759149464438,0.61100464,112270.0,112260.0,0.01301]
[1759149464637,1.44188464,112270.0,112260.0,0.01301]
[1759149464837,0.67332664,112270.0,112260.0,0.01301]
[1759149465033,0.67332664,112270.0,112260.0,0.03563]
[1759149465341,0.41646757,112270.0,112260.0,0.124663]
[1759149465639,1.24734757,112270.0,112260.0,0.124663]
[1759149466430,0.41686757,112270.0,112260.0,0.124663]
[1759149466640,1.23458757,112270.0,112260.0,0.124663]
[1759149467133,0.41686757,112270.0,112260.0,0.124663]
[1759149467345,1.24714757,112270.0,112260.0,0.03563]
[1759149467636,1.24714757,112270.0,112260.0,0.124663]
[1759149467637,0.41686757,112270.0,112260.0,0.124663]
[1759149467832,1.01083577,112270.0,112260.0,0.03563]
[1759149468135,1.26769484,112270.0,112260.0,0.03563]
[1759149468739,1.52455391,112270.0,112260.0,0.03563]
[1759149468936,1.52455391,112270.0,112260.0,0.01301]
[1759149469439,0.0890329,112260.0,112250.0,0.01301]
[1759149469631,0.60275104,112260.0,112250.0,0.01301]
[1759149469832,0.60275104,112260.0,112250.0,0.03441]
[1759149470232,0.60275104,112260.0,112250.0,0.1234509]
[1759149471240,1.43583104,112260.0,112250.0,0.1234509]
[1759149471643,1.43587104,112260.0,112250.0,0.1234509]
[1759149472335,0.60275104,112260.0,112250.0,0.1234509]
[1759149472539,0.34589197,112260.0,112250.0,0.1234509]
[1759149472737,1.17869197,112260.0,112250.0,0.1234509]
[1759149472936,0.25685907,112260.0,112250.0,0.1234509]
[1759149473143,0.25725907,112260.0,112250.0,0.1234509]
[1759149473337,0.25725907,112260.0,112250.0,0.5234509]
[1759149473536,0.1604138,112270.0,112260.0,0.1239329]
[1759149473537,1.24971287,112270.0,112260.0,0.1239329]
[1759149474340,1.5071829,112270.0,112260.0,0.1239329]
[1759149474537,0.6739429,112270.0,112260.0,0.1239329]
[1759149474742,0.41677305,112270.0,112260.0,0.5239329]
[1759149475141,0.32774805,112270.0,112260.0,0.5239329]
[1759149475335,7.449e-05,112270.0,112260.0,0.78109745]
[1759149475537,0.00047449,112270.0,112260.0,1.07014176]
[1759149475740,0.25723904,112270.0,112260.0,1.07014176]
[1759149475937,0.25723904,112270.0,112260.0,0.81297721]
[1759149476137,0.25763904,112270.0,112260.0,0.81297721]
[1759149476632,0.25763904,112270.0,112260.0,0.55581266]
[1759149476835,0.25763904,112270.0,112260.0,0.81297721]
[1759149478340,0.25763904,112270.0,112260.0,0.55581266]
[1759149478341,0.08949819,112270.0,112260.0,0.55581266]
[1759149478542,0.41088379,112270.0,112260.0,0.15581266]
[1759149480353,0.41088379,112270.0,112260.0,0.1239329]
[1759149480835,0.41088379,112270.0,112260.0,0.5239329]
[1759149481238,0.41088379,112270.0,112260.0,0.1239329]
[1759149481644,0.81088379,112270.0,112260.0,0.0135]
[1759149481838,1.64340379,112270.0,112260.0,0.0135]
[1759149482740,1.71478875,112270.0,112260.0,0.0135]
[1759149484245,1.73506417,112270.0,112260.0,0.0135]
[1759149487951,0.90254417,112270.0,112260.0,0.0135]
[1759149488249,1.73454417,112270.0,112260.0,0.0135]
[1759149491240,1.73414417,112270.0,112260.0,0.0135]
[1759149492654,0.0890317,112260.0,112250.0,0.01301]
[1759149492849,0.43069272,112260.0,112250.0,0.03441]
[1759149493348,1.26269272,112260.0,112250.0,0.03441]
[1759149493651,0.43069272,112260.0,112250.0,0.03441]
[1759149494151,1.26265272,112260.0,112250.0,0.03441]
[1759149494353,0.10930712,112260.0,112250.0,0.1234497]
[1759149494548,0.43069272,112260.0,112250.0,0.1234497]
[1759149494856,1.03817272,112260.0,112250.0,0.1234497]
[1759149495044,1.26261272,112260.0,112250.0,0.1234497]
[1759149495242,1.26257272,112260.0,112250.0,0.1234497]
[1759149495444,1.26297272,112260.0,112250.0,0.1234497]
[1759149496553,0.43109272,112260.0,112250.0,0.1234497]
[1759149496749,1.26297272,112260.0,112250.0,0.1234497]
[1759149497348,1.26261272,112260.0,112250.0,0.1234497]
[1759149498248,1.26249272,112260.0,112250.0,0.1234497]
[1759149498452,1.45554416,112260.0,112250.0,0.1234497]
[1759149499058,0.62414416,112260.0,112250.0,0.1234497]
[1759149499350,1.45510416,112260.0,112250.0,0.1234497]
[1759149500445,0.62414416,112260.0,112250.0,0.1234497]
[1759149500650,1.43450874,112260.0,112250.0,0.1234497]
[1759149501554,0.60386874,112260.0,112250.0,0.1234497]
[1759149501752,0.25761852,112260.0,112250.0,0.8284739]
[1759149502059,0.25721852,112260.0,112250.0,0.8284739]
[1759149502247,0.25761852,112260.0,112250.0,0.8284739]
[1759149503053,0.25761852,112260.0,112250.0,0.57125538]
[1759149503354,0.60386884,112260.0,112250.0,0.17125538]
[1759149503649,0.60386884,112260.0,112250.0,0.57125538]
[1759149505052,0.51483704,112260.0,112250.0,0.57125538]
[1759149505854,0.0004,112260.0,112250.0,0.57125538]
[1759149506050,0.60386884,112260.0,112250.0,0.57125538]
[1759149506256,0.0894318,112260.0,112250.0,0.57125538]
[1759149506755,0.60386884,112260.0,112250.0,0.57125538]
[1759149508057,0.51483704,112260.0,112250.0,0.57125538]
[1759149508758,0.0004,112260.0,112250.0,0.57125538]
[1759149508959,0.51483704,112260.0,112250.0,0.57125538]
[1759149510160,0.51483704,112260.0,112250.0,0.5234497]
[1759149511253,0.51483704,112260.0,112250.0,0.58743339]
[1759149511856,0.51483704,112260.0,112250.0,0.09839369]
[1759149511857,0.77205556,112260.0,112250.0,0.09839369]
[1759149512158,1.28151164,112260.0,112250.0,0.01301]
[1759149512661,1.28151164,112260.0,112250.0,0.03578]
[1759149512863,0.62429312,112260.0,112250.0,0.1248196]
[1759149513056,1.45273312,112260.0,112250.0,0.1248196]
[1759149513249,1.45313312,112260.0,112250.0,0.1248196]
[1759149514161,1.45313312,112260.0,112250.0,0.03578]
[1759149514562,0.0890397,112250.0,112240.0,0.06192507]
[1759149514863,0.62388582,112250.0,112240.0,0.01395712]
[1759149515257,0.62388582,112250.0,112240.0,0.01435712]
[1759149515463,1.02388582,112250.0,112240.0,0.01435712]
[1759149515960,1.02388582,112250.0,112240.0,0.01395712]
[1759149516160,1.28110434,112250.0,112240.0,0.01435712]
[1759149516359,1.28110434,112250.0,112240.0,0.00134712]
[1759149516554,1.28110434,112250.0,112240.0,0.00094712]
[1759149516759,0.0890477,112240.0,112230.0,0.01301]
[1759149516950,1.70980754,112240.0,112230.0,0.01301]
[1759149519061,0.88112754,112240.0,112230.0,0.01301]
[1759149519262,1.70980754,112240.0,112230.0,0.01301]
[1759149519461,1.70960754,112240.0,112230.0,0.01301]
[1759149520066,0.88112754,112240.0,112230.0,0.01301]
[1759149520365,1.70948754,112240.0,112230.0,0.01301]
[1759149520662,0.88112754,112240.0,112230.0,0.1020657]
[1759149520861,0.88112754,112240.0,112230.0,0.1248357]
[1759149521062,1.70944754,112240.0,112230.0,0.1248357]
[1759149521258,0.88112754,112240.0,112230.0,0.1248357]
[1759149521567,0.8892803,112240.0,112230.0,0.1248357]
[1759149521770,0.51452852,112240.0,112230.0,0.1248357]
[1759149522067,1.34308852,112240.0,112230.0,0.1248357]
[1759149522269,1.34348852,112240.0,112230.0,0.1248357]
[1759149522765,0.51492852,112240.0,112230.0,0.1248357]
[1759149523173,1.34400852,112240.0,112230.0,0.1248357]
[1759149523865,1.43305602,112240.0,112230.0,0.1248357]
[1759149524060,1.34400852,112240.0,112230.0,0.1248357]
[1759149524461,1.43305602,112240.0,112230.0,0.1248357]
[1759149524671,1.34400852,112240.0,112230.0,0.1248357]
[1759149525077,1.43305592,112240.0,112230.0,0.03578]
[1759149525274,1.43305592,112240.0,112230.0,0.1248354]
[1759149525569,2.09027444,112240.0,112230.0,0.01301]
[1759149525776,2.09027444,112240.0,112230.0,0.1024657]
[1759149525976,2.09083444,112240.0,112230.0,0.1024657]
[1759149526178,2.09083444,112240.0,112230.0,0.1252357]
[1759149526476,2.09079444,112240.0,112230.0,0.1252357]
[1759149527072,1.26119444,112240.0,112230.0,0.1252357]
[1759149527274,0.60397612,112240.0,112230.0,0.1252357]
[1759149527576,1.43341612,112240.0,112230.0,0.1252357]
[1759149531481,9.148e-05,112240.0,112230.0,0.78245422]
[1759149531779,0.51492852,112240.0,112230.0,0.5252357]
[1759149531976,0.60357632,112240.0,112230.0,0.17320365]
[1759149532177,0.60397632,112240.0,112230.0,0.17320365]
[1759149532372,0.60397632,112240.0,112230.0,0.1252357]
[1759149532578,0.51492852,112240.0,112230.0,0.1248357]
[1759149532780,0.51492852,112240.0,112230.0,0.1252357]
[1759149534176,0.00049148,112240.0,112230.0,0.1252357]
[1759149534384,0.2578045,112240.0,112230.0,0.1252357]
[1759149536183,0.2578045,112240.0,112230.0,0.17320365]
[1759149539188,0.00049148,112240.0,112230.0,0.17320365]
[1759149539389,0.2578045,112240.0,112230.0,0.17320365]
[1759149539982,0.00049148,112240.0,112230.0,0.57320365]
[1759149540182,0.2578045,112240.0,112230.0,0.57320365]
[1759149540487,0.2574045,112240.0,112230.0,0.57320365]
[1759149540685,0.2578045,112240.0,112230.0,0.57320365]
[1759149542088,0.3468522,112240.0,112230.0,0.57320365]
[1759149543189,0.3468522,112240.0,112230.0,0.17320365]
[1759149544084,1.02442523,112240.0,112230.0,0.1024657]
[1759149544289,1.02442523,112240.0,112230.0,0.01341]
[1759149544488,1.02442523,112240.0,112230.0,0.01301]
[1759149544684,1.02442523,112240.0,112230.0,0.01341]
[1759149545787,0.76702073,112240.0,112230.0,0.02697632]
[1759149545991,1.02433375,112240.0,112230.0,0.01341]
[1759149548595,1.33778771,112240.0,112230.0,0.03492]
[1759149548796,1.59502073,112240.0,112230.0,0.03492]
[1759149549097,1.59502073,112240.0,112230.0,0.1239757]
[1759149549794,1.59502073,112240.0,112230.0,0.03492]
[1759149549996,1.59502073,112240.0,112230.0,0.01341]
[1759149550389,1.85233375,112240.0,112230.0,0.01341]
[1759149552596,1.45233375,112240.0,112230.0,0.01341]
[1759149553094,1.45235986,112240.0,112230.0,0.01301]
[1759149553399,1.45235986,112240.0,112230.0,0.01341]
[1759149553599,1.45235986,112240.0,112230.0,0.01301]
[1759149553898,1.45235986,112240.0,112230.0,0.01341]
[1759149554301,1.85235986,112240.0,112230.0,0.0004]
[1759149554503,0.0890557,112230.0,112220.0,0.03545]
[1759149554703,0.62396786,112230.0,112220.0,0.1245136]
[1759149554903,0.62396786,112230.0,112220.0,0.03545]
[1759149555105,0.62396786,112230.0,112220.0,0.01439]
[1759149555308,0.62436786,112230.0,112220.0,0.01439]
[1759149555613,0.62436786,112230.0,112220.0,0.1034536]
[1759149556804,0.62436786,112230.0,112220.0,0.1245136]
[1759149557906,0.62436786,112230.0,112220.0,0.1034536]
[1759149558099,0.62436786,112230.0,112220.0,0.01439]
[1759149558299,0.69405425,112230.0,112220.0,0.01439]
[1759149559098,1.09405425,112230.0,112220.0,0.01439]
[1759149559703,1.09405425,112230.0,112220.0,0.01479]
[1759149560506,1.09405425,112230.0,112220.0,0.01439]
[1759149560807,1.09405425,112230.0,112220.0,0.01479]
[1759149561197,1.92113425,112230.0,112220.0,0.01479]
[1759149561398,1.09405425,112230.0,112220.0,0.1271536]
[1759149561701,1.52101425,112230.0,112220.0,0.1271536]
[1759149561905,1.26370123,112230.0,112220.0,0.1271536]
[1759149562208,1.52101425,112230.0,112220.0,0.1271536]
[1759149562707,1.52089425,112230.0,112220.0,0.1271536]
[1759149565713,0.69405425,112230.0,112220.0,0.1271536]
[1759149565914,1.26350123,112230.0,112220.0,0.5271536]
[1759149566114,1.26310123,112230.0,112220.0,0.5271536]
[1759149566416,1.52081425,112230.0,112220.0,0.5271536]
[1759149566612,1.43175855,112230.0,112220.0,0.5271536]
[1759149568708,0.60499855,112230.0,112220.0,0.5271536]
[1759149569013,1.43151855,112230.0,112220.0,0.5271536]
[1759149569412,1.17384553,112230.0,112220.0,0.5271536]
[1759149570111,0.34768553,112230.0,112220.0,0.5271536]
[1759149570316,0.60499855,112230.0,112220.0,0.5271536]
[1759149570814,1.43095855,112230.0,112220.0,0.5271536]
[1759149571313,1.43091855,112230.0,112220.0,0.5271536]
[1759149571813,0.09037251,112230.0,112220.0,0.5271536]
[1759149572013,0.02028612,112230.0,112220.0,0.78446662]
[1759149572214,0.27799914,112230.0,112220.0,0.5271536]
[1759149574518,0.36705454,112230.0,112220.0,0.5271536]
[1759149575417,0.36705454,112230.0,112220.0,0.5262636]
[1759149575921,0.62436756,112230.0,112220.0,0.1262636]
[1759149576118,0.62436756,112230.0,112220.0,0.1258636]
[1759149576420,0.62436756,112230.0,112220.0,0.1262636]
[1759149579610,0.10974152,112230.0,112220.0,0.1262636]
[1759149579811,0.69436028,112230.0,112220.0,0.1262636]
[1759149580015,0.17973424,112230.0,112220.0,0.1262636]
[1759149580216,0.69436028,112230.0,112220.0,0.1262636]
[1759149580818,0.69436028,112230.0,112220.0,0.0372]
[1759149586222,0.69436028,112230.0,112220.0,0.1262635]
[1759149587132,1.26120726,112230.0,112220.0,0.1262635]
[1759149587430,1.26080726,112230.0,112220.0,0.1262635]
[1759149587720,0.43704726,112230.0,112220.0,0.1262635]
[1759149588027,0.43664726,112230.0,112220.0,0.1262635]
[1759149588228,0.69396028,112230.0,112220.0,0.1262635]
[1759149588729,0.69436028,112230.0,112220.0,0.1262635]
[1759149588930,0.43704726,112230.0,112220.0,0.1262635]
[1759149590326,0.34799186,112230.0,112220.0,0.1262635]
[1759149591336,0.34799186,112230.0,112220.0,0.17423145]
[1759149592030,0.45399186,112230.0,112220.0,0.17423145]
[1759149592233,0.54304716,112230.0,112220.0,0.17423145]
[1759149593626,0.80036018,112230.0,112220.0,0.17423145]
[1759149594029,0.54304716,112230.0,112220.0,0.17423145]
[1759149594229,0.80043158,112230.0,112220.0,0.17423145]
[1759149596734,0.80043158,112230.0,112220.0,0.17512145]
[1759149599238,0.28573414,112230.0,112220.0,0.17512145]
[1759149599535,0.80043158,112230.0,112220.0,0.17512145]
[1759149601436,0.80043158,112230.0,112220.0,0.17472145]
[1759149601637,0.80043158,112230.0,112220.0,0.17512145]
[1759149602632,1.62459158,112230.0,112220.0,0.17512145]
[1759149604440,0.28573414,112230.0,112220.0,0.17512145]
[1759149604641,1.62455158,112230.0,112220.0,0.17512145]
[1759149610339,1.62455158,112230.0,112220.0,0.1271535]
[1759149610850,1.53549628,112230.0,112220.0,0.1271535]
[1759149611049,1.62455178,112230.0,112220.0,0.1271535]
[1759149611745,0.80043178,112230.0,112220.0,0.1271535]
[1759149611940,1.62455178,112230.0,112220.0,0.1271535]
[1759149613744,0.19667884,112230.0,112220.0,0.1271535]
[1759149613949,1.62455168,112230.0,112220.0,0.1271535]
[1759149616959,0.71137628,112230.0,112220.0,0.1271535]
[1759149617257,0.45402756,112230.0,112220.0,0.17512145]
[1759149617453,0.12628612,112230.0,112220.0,0.83247017]
[1759149617757,0.1064,112230.0,112220.0,1.10583463]
[1759149618058,0.106,112230.0,112220.0,1.10583463]
[1759149618363,0.1064,112230.0,112220.0,1.04185094]
[1759149618557,0.1064,112230.0,112220.0,1.86593094]
[1759149619659,0.36374872,112230.0,112220.0,0.5271535]
[1759149619863,0.36374872,112230.0,112220.0,0.1271535]
[1759149620161,0.36374872,112230.0,112220.0,0.17516067]
[1759149620456,0.36374872,112230.0,112220.0,0.1271535]
[1759149620660,0.36374872,112230.0,112220.0,0.17516174]
[1759149620860,0.69163157,112230.0,112220.0,0.17516174]
[1759149621061,0.69163157,112230.0,112220.0,0.17476174]
[1759149621261,0.69163157,112230.0,112220.0,0.17516174]
[1759149621855,0.52333835,112230.0,112220.0,0.17516174]
[1759149622050,0.78068707,112230.0,112220.0,0.17516174]
[1759149622260,0.52333835,112230.0,112220.0,0.17516174]
[1759149622954,0.78068707,112230.0,112220.0,0.17516174]
[1759149623358,0.8010001,112230.0,112220.0,0.17516174]
[1759149623562,0.8010001,112230.0,112220.0,0.17476174]
[1759149623757,0.8010001,112230.0,112220.0,0.17516174]
[1759149624256,1.2010001,112230.0,112220.0,0.17516174]
[1759149624460,2.0250401,112230.0,112220.0,0.17516174]
[1759149625260,2.0250401,112230.0,112220.0,0.15186174]
[1759149625561,2.0250401,112230.0,112220.0,0.1258135]
[1759149626965,2.04570354,112230.0,112220.0,0.1258135]
[1759149627262,1.5310061,112230.0,112220.0,0.1258135]
[1759149627562,1.95664804,112230.0,112220.0,0.1258135]
[1759149627765,2.04570364,112230.0,112220.0,0.1258135]
[1759149630761,2.04570364,112230.0,112220.0,0.15186174]
[1759149630960,2.04570364,112230.0,112220.0,0.1034535]
[1759149631265,2.04570364,112230.0,112220.0,0.1038535]
[1759149632663,2.04570364,112230.0,112220.0,0.1034535]
[1759149632859,2.04570364,112230.0,112220.0,0.1038535]
[1759149633462,2.04570364,112230.0,112220.0,0.01479]
[1759149633967,2.04570364,112230.0,112220.0,0.01439]
[1759149634358,2.04570364,112230.0,112220.0,0.01479]
[1759149634764,2.30305236,112230.0,112220.0,0.01479]
[1759149635768,2.04570364,112230.0,112220.0,0.1038534]
[1759149636866,2.04570364,112230.0,112220.0,0.01479]
[1759149637564,2.04570364,112230.0,112220.0,0.1038534]
[1759149638270,2.04570364,112230.0,112220.0,0.01479]
[1759149639264,2.0250402,112230.0,112220.0,0.01479]
[1759149639465,1.6250402,112230.0,112220.0,0.01479]
[1759149641867,2.30283735,112230.0,112210.0,0.01439]
[1759149642071,0.86110936,112220.0,112210.0,0.01359]
[1759149642369,0.88142239,112220.0,112210.0,0.01399]
[1759149642672,0.88142239,112220.0,112210.0,0.01359]
[1759149643075,0.88142239,112220.0,112210.0,0.1030613]
[1759149644168,0.88142239,112220.0,112210.0,0.01399]
[1759149644880,0.91642239,112220.0,112210.0,0.0004]
[1759149645070,0.91642239,112220.0,112200.0,0.12471499]
[1759149645071,0.0890712,112210.0,112200.0,0.12471499]
[1759149645273,1.44816167,112210.0,112200.0,0.12551499]
[1759149646370,1.51916167,112210.0,112200.0,0.12551499]
[1759149646573,1.55416167,112210.0,112200.0,0.12551499]
[1759149648180,1.46509047,112210.0,112200.0,0.12551499]
[1759149649384,1.4733862,112210.0,112200.0,0.12551499]
[1759149649981,1.5624576,112210.0,112200.0,0.12551499]
[1759149650482,1.04776016,112210.0,112200.0,0.12551499]
[1759149650783,1.5624576,112210.0,112200.0,0.12551499]
[1759149651179,0.7383776,112210.0,112200.0,0.01448169]
[1759149651381,1.5624976,112210.0,112200.0,0.01448169]
[1759149651580,0.7383776,112210.0,112200.0,0.03633169]
[1759149651781,1.5624976,112210.0,112200.0,0.03633169]
[1759149651983,1.5624976,112210.0,112200.0,0.12541069]
[1759149654085,1.5624976,112210.0,112200.0,0.10356069]
[1759149654285,1.5624976,112210.0,112200.0,0.12541069]
[1759149655381,1.04780016,112210.0,112200.0,0.12541069]
[1759149655580,1.5624976,112210.0,112200.0,0.12541069]
[1759149656280,1.30528398,112210.0,112200.0,0.12541069]
[1759149656479,1.5627678,112210.0,112200.0,0.01448169]
[1759149656687,1.9627678,112210.0,112200.0,0.00089169]
[1759149657087,1.9627678,112210.0,112200.0,9.169e-05]
[1759149657678,1.9627678,112210.0,112200.0,0.00049169]
[1759149658083,1.9627678,112210.0,112200.0,9.169e-05]
[1759149658288,1.9627678,112210.0,112200.0,0.00049169]
[1759149659389,0.0890876,112190.0,112180.0,0.01536]
[1759149659583,1.19100445,112190.0,112180.0,0.02819695]
[1759149659779,1.19100445,112190.0,112180.0,0.02859695]
[1759149660182,1.19108208,112190.0,112180.0,0.02859695]
[1759149660689,1.19108208,112190.0,112180.0,0.11769255]
[1759149660690,1.26108208,112190.0,112180.0,0.11769255]
[1759149661478,1.26108208,112190.0,112180.0,0.10362255]
[1759149661682,1.26108208,112190.0,112180.0,0.11793255]
[1759149662084,1.19108208,112190.0,112180.0,0.11793255]
[1759149662391,1.22608208,112190.0,112180.0,0.11793255]
[1759149663289,1.29805241,112190.0,112180.0,0.11793255]
[1759149664190,1.29805241,112190.0,112180.0,0.01492695]
[1759149664386,1.29805241,112190.0,112180.0,0.02883695]
[1759149664591,1.29805241,112190.0,112180.0,0.02843695]
[1759149664891,1.29805241,112190.0,112180.0,0.02883695]
[1759149665091,1.29805241,112190.0,112180.0,0.02843695]
[1759149665293,1.29805241,112190.0,112180.0,0.02883695]
[1759149665890,1.26305241,112190.0,112180.0,0.02883695]
[1759149666193,1.33405241,112190.0,112180.0,0.11793235]
[1759149666497,0.46523806,112190.0,112180.0,0.13978235]
[1759149666690,1.29679806,112190.0,112180.0,0.13978235]
[1759149668897,1.29679806,112190.0,112180.0,0.13889235]
[1759149669104,1.29679806,112190.0,112180.0,0.1252554]
[1759149669105,1.30593231,112190.0,112180.0,0.1252554]
[1759149669398,1.30593231,112190.0,112180.0,0.13882283]
[1759149669590,1.30599403,112190.0,112180.0,0.13882283]
[1759149670095,1.30599403,112190.0,112180.0,0.04972743]
[1759149670495,1.30599403,112190.0,112180.0,0.13882293]
[1759149671601,1.30599403,112190.0,112180.0,0.02787743]
[1759149672795,1.30599403,112190.0,112180.0,0.13882283]
[1759149673901,1.30599403,112190.0,112180.0,0.02787743]
[1759149674990,1.30599403,112190.0,112180.0,0.01356743]
[1759149675191,1.30599403,112190.0,112180.0,0.01396743]
[1759149675599,1.30599403,112190.0,112180.0,0.01356743]
[1759149675802,1.30599403,112190.0,112180.0,0.02717743]
[1759149676101,1.30599403,112190.0,112180.0,0.01396743]
[1759149677904,1.56347785,112190.0,112180.0,0.01396743]
[1759149678705,1.30599403,112190.0,112180.0,0.01396743]
[1759149678899,1.30599403,112190.0,112180.0,0.0004]
[1759149679997,1.04851021,112190.0,112180.0,0.0004]
[1759149680203,1.30599403,112190.0,112180.0,0.01396245]
[1759149680392,1.04851021,112190.0,112180.0,0.01396245]
[1759149680699,1.30599403,112190.0,112180.0,0.01396245]
[1759149681300,1.56347785,112190.0,112180.0,0.01396245]
[1759149682205,2.03447785,112190.0,112180.0,0.01396245]
[1759149682606,2.03447785,112190.0,112180.0,0.01356245]
[1759149682909,2.03447785,112190.0,112180.0,0.01396245]
[1759149684504,2.06642097,112190.0,112180.0,0.01396245]
[1759149684708,2.06634334,112190.0,112180.0,2.45e-06]
[1759149684905,2.11382353,112190.0,112180.0,2.45e-06]
[1759149685202,0.0891029,112170.0,112160.0,0.03887]
[1759149685409,1.47749632,112170.0,112160.0,0.0156]
[1759149685601,1.47749632,112170.0,112160.0,0.03887]
[1759149685802,1.47749632,112170.0,112160.0,0.0156]
[1759149686410,1.54749632,112170.0,112160.0,0.0156]
[1759149686606,1.54749632,112170.0,112160.0,0.0148]
[1759149686810,1.54749632,112170.0,112160.0,0.0152]
[1759149687008,1.54749632,112170.0,112160.0,0.0148]
[1759149687408,1.53880009,112170.0,112160.0,0.0148]
[1759149687610,1.50380009,112170.0,112160.0,0.0152]
[1759149689012,1.50380009,112170.0,112160.0,0.0148]
[1759149689212,1.50380009,112170.0,112160.0,0.0152]
[1759149689610,1.50380009,112170.0,112160.0,0.0148]
[1759149689814,1.50380009,112170.0,112160.0,0.0152]
[1759149690014,1.50380009,112170.0,112160.0,0.01431]
[1759149691812,1.50382038,112170.0,112160.0,0.01431]
[1759149700526,1.5357635,112170.0,112160.0,0.01431]
[1759149704926,0.0891111,112160.0,112150.0,0.0148]
[1759149705229,0.36706883,112160.0,112150.0,0.0148]
[1759149706827,0.43706883,112160.0,112150.0,0.0148]
[1759149707232,0.40206883,112160.0,112150.0,0.0148]
[1759149707535,0.43706883,112160.0,112150.0,0.0148]
[1759149707932,0.47206883,112160.0,112150.0,0.0148]
[1759149709033,0.47206883,112160.0,112150.0,0.03807]
[1759149709233,0.47206883,112160.0,112150.0,0.127189]
[1759149709434,1.30162883,112160.0,112150.0,0.127189]
[1759149709633,1.30162883,112160.0,112150.0,0.03807]
[1759149711333,1.30162883,112160.0,112150.0,0.0148]
[1759149713135,1.26762883,112160.0,112150.0,0.0148]
[1759149713833,1.48903378,112160.0,112150.0,0.00089]
[1759149714031,0.089119,112150.0,112140.0,0.01321]
[1759149714331,0.64495035,112150.0,112140.0,0.02694713]
[1759149715535,0.71755245,112150.0,112140.0,0.02694713]
[1759149715836,0.75255245,112150.0,112140.0,0.02694713]
[1759149716136,0.78855245,112150.0,112140.0,0.02694713]
[1759149716337,0.78048276,112150.0,112140.0,0.02694713]
[1759149716643,0.78918257,112150.0,112140.0,0.02694713]
[1759149716934,0.78918257,112150.0,112140.0,0.04962713]
[1759149718938,0.78918257,112150.0,112140.0,0.03589]
[1759149720840,1.61722257,112150.0,112140.0,0.1250169]
[1759149721638,1.61722257,112150.0,112140.0,0.03589]
[1759149723637,1.61722257,112150.0,112140.0,0.01321]
[1759149724039,1.8750205,112150.0,112140.0,0.01321]
[1759149724340,1.8750205,112150.0,112140.0,0.01361]
[1759149724542,1.8750205,112150.0,112140.0,0.01321]
[1759149724742,1.8750205,112150.0,112140.0,0.01361]
[1759149726445,0.0891269,112140.0,112130.0,0.01384]
[1759149726642,0.0891349,112130.0,112120.0,0.01479778]
[1759149726843,1.71026823,112130.0,112120.0,0.02934952]
[1759149727044,1.4524703,112130.0,112120.0,0.01479778]
[1759149727239,1.71026823,112130.0,112120.0,0.01519778]
[1759149727446,1.71026823,112130.0,112120.0,0.00095778]
[1759149727640,1.74214685,112130.0,112120.0,0.00135778]
[1759149727948,0.0891428,112120.0,112110.0,0.01375]
[1759149728250,0.0891508,112110.0,112100.0,0.01455]
[1759149728445,1.4525417,112110.0,112100.0,0.01455]
[1759149728641,1.4525417,112110.0,112100.0,0.01375]
[1759149728843,1.4525417,112110.0,112100.0,0.01415]
[1759149729044,1.4526402,112110.0,112100.0,0.01415]
[1759149729239,1.3634894,112110.0,112100.0,0.1259886]
[1759149729440,0.09355661,112110.0,112100.0,0.1259886]
[1759149729644,0.8412395,112110.0,112100.0,0.78378653]
[1759149730144,0.8412395,112110.0,112100.0,0.5259886]
[1759149730442,1.0013903,112110.0,112100.0,0.5259886]
[1759149730647,1.0363903,112110.0,112100.0,0.5259886]
[1759149731341,0.9472395,112110.0,112100.0,0.5259886]
[1759149731643,0.05374974,112110.0,112100.0,1.10771942]
[1759149731848,0.25779793,112140.0,112130.0,0.1255647]
[1759149731849,0.39202793,112140.0,112130.0,0.1255647]
[1759149732047,0.39202793,112140.0,112130.0,0.03643]
[1759149732048,0.73895266,112140.0,112130.0,0.03643]
[1759149732247,0.64982586,112140.0,112130.0,0.1255647]
[1759149732646,0.73901383,112140.0,112130.0,0.1255647]
[1759149733048,0.81001383,112140.0,112130.0,0.1255647]
[1759149733548,0.84601383,112140.0,112130.0,0.1295647]
[1759149733745,0.75688683,112140.0,112130.0,0.1295647]
[1759149733940,0.84601383,112140.0,112130.0,0.1295647]
[1759149736348,1.13796832,112140.0,112130.0,0.004]
[1759149736744,1.53796832,112140.0,112130.0,0.0044]
[1759149736950,0.124871,112110.0,112100.0,0.1252521]
[1759149737152,0.64046686,112110.0,112100.0,0.02235]
[1759149737452,0.64052783,112110.0,112100.0,0.02235]
[1759149737641,0.64052783,112110.0,112100.0,0.111509]
[1759149738149,0.71179357,112110.0,112100.0,0.111509]
[1759149738351,0.74479357,112110.0,112100.0,0.114509]
[1759149738650,0.81379357,112110.0,112100.0,0.120909]
[1759149738850,0.83418369,112110.0,112100.0,0.120909]
[1759149739051,0.83418369,112110.0,112100.0,0.0094]
[1759149739555,0.83418369,112110.0,112100.0,0.009]
[1759149739853,0.83418369,112110.0,112100.0,0.0094]
[1759149740551,0.83418369,112110.0,112100.0,0.009]
[1759149740755,0.83418369,112110.0,112100.0,0.0094]
[1759149740962,0.83418369,112110.0,112100.0,0.009]
[1759149741145,0.83418369,112110.0,112100.0,0.0094]
[1759149741347,1.0715915,112110.0,112100.0,0.0094]
[1759149741556,1.09191766,112110.0,112100.0,0.009]
[1759149741760,1.09191766,112110.0,112100.0,0.0094]
[1759149742148,1.91931766,112110.0,112100.0,0.0094]
[1759149743343,0.1242869,112090.0,112080.0,0.02010981]
[1759149743549,1.2097458,112090.0,112080.0,0.00169]
[1759149743954,0.3821458,112090.0,112080.0,0.0225]
[1759149744159,1.2097858,112090.0,112080.0,0.0904649]
[1759149744457,0.3821458,112090.0,112080.0,0.1116747]
[1759149744755,1.2109058,112090.0,112080.0,0.1120747]
[1759149744957,1.2469458,112090.0,112080.0,0.1170747]
[1759149745158,0.58677683,112090.0,112080.0,0.1170747]
[1759149745360,1.41553683,112090.0,112080.0,0.1170747]
[1759149745857,1.41573683,112090.0,112080.0,0.1308547]
[1759149746055,0.57439683,112090.0,112080.0,0.1308547]
[1759149746255,1.40347683,112090.0,112080.0,0.1308547]
[1759149746456,0.3165989,112090.0,112080.0,0.5308547]
[1759149747455,0.3165989,112090.0,112080.0,0.78865263]
[1759149747456,0.03606097,112090.0,112080.0,0.78865263]
[1759149747658,0.2938589,112090.0,112080.0,0.78865263]
[1759149747856,0.03606097,112090.0,112080.0,1.09442042]
[1759149749558,0.03606097,112090.0,112080.0,0.57882456]